bitfinex/quotes_SOLUSD_20260302
["timestamp","ask_amount","ask_price","bid_price","bid_amount"]
[1772475372087,8.3861721,87.39,87.359,11.44691385]
[1772475372251,4.25060726,87.389,87.359,11.44691385]
[1772475372981,8.3861721,87.39,87.359,15.731125]
[1772475373769,4.25060726,87.399,87.36,4.28421115]
[1772475373968,11.44190942,87.398,87.36,4.28421115]
[1772475374171,8.3861721,87.39,87.36,4.28421115]
[1772475374884,11.4430878,87.389,87.36,4.28421115]
[1772475376086,11.4430878,87.389,87.361,11.44675541]
[1772475376289,8.3861721,87.39,87.361,11.44675541]
[1772475376475,8.3861721,87.39,87.323,46.95160497]
[1772475376476,4.17737159,87.389,87.35,4.10962801]
[1772475376679,8.3861721,87.37,87.347,11.44850719]
[1772475376882,4.17737159,87.379,87.347,11.44850719]
[1772475377262,4.12337512,87.369,87.332,40.07694773]
[1772475377463,8.3861721,87.35,87.318,11.4523924]
[1772475377688,8.3861721,87.34,87.318,11.4523924]
[1772475377889,8.3861721,87.33,87.299,4.14766891]
[1772475378273,4.12337512,87.363,87.299,4.14766891]
[1772475378585,8.3861721,87.35,87.299,4.14766891]
[1772475378773,8.3861721,87.35,87.282,3.69383402]
[1772475378774,8.3861721,87.36,87.311,4.14766891]
[1772475378973,8.3861721,87.37,87.316,0.28432314]
[1772475379174,11.44448203,87.379,87.323,4.14766891]
[1772475379487,8.3861721,87.38,87.334,4.14766891]
[1772475383194,11.44439739,87.379,87.338,3.69383402]
[1772475383384,11.44439739,87.379,87.339,4.14766891]
[1772475383891,7.16718875,87.397,87.343,4.14766891]
[1772475384105,8.3861721,87.39,87.347,4.14766891]
[1772475384474,8.3861721,87.36,87.335,11.45016316]
[1772475385178,8.3861721,87.35,87.33,11.45080895]
[1772475385472,8.3861721,87.36,87.331,4.14766891]
[1772475387373,8.3861721,87.36,87.333,4.14766891]
[1772475388576,8.38995203,87.36,87.333,4.14766891]
[1772475388785,4.12337512,87.396,87.336,4.14766891]
[1772475388979,4.12337512,87.389,87.336,4.14766891]
[1772475389481,8.38995203,87.38,87.341,4.14766891]
[1772475389678,8.38995203,87.36,87.329,4.14766891]
[1772475389884,40.05126561,87.388,87.311,4.14766891]
[1772475389885,8.38995203,87.34,87.311,4.14766891]
[1772475390396,4.12337512,87.349,87.311,4.14766891]
[1772475391081,4.12337512,87.349,87.306,40.08888277]
[1772475391082,4.12337512,87.368,87.313,4.14766891]
[1772475391600,8.38995203,87.35,87.318,4.14766891]
[1772475392802,8.38995203,87.37,87.323,4.14766891]
[1772475393610,15.56803042,87.378,87.328,4.14766891]
[1772475393897,8.38995203,87.37,87.328,4.14766891]
[1772475395578,8.38995203,87.37,87.33,4.14766891]
[1772475396584,15.5690824,87.369,87.33,4.14766891]
[1772475396999,8.38995203,87.37,87.33,4.14766891]
[1772475397796,4.12337512,87.389,87.335,4.14766891]
[1772475398001,8.38995203,87.38,87.335,4.14766891]
[1772475398199,4.12337512,87.369,87.335,4.14766891]
[1772475398387,4.12337512,87.359,87.331,11.45068761]
[1772475398583,8.38995203,87.34,87.322,11.45181303]
[1772475398895,8.38995203,87.34,87.317,11.4525072]
[1772475400302,8.38995203,87.34,87.308,4.14766891]
[1772475400698,4.12337512,87.349,87.308,4.14766891]
[1772475402102,8.38995203,87.34,87.308,4.14766891]
[1772475402405,8.38995203,87.34,87.286,45.82598758]
[1772475402406,8.38995203,87.34,87.309,44.2351742]
[1772475402582,8.38995203,87.34,87.31,4.14766891]
[1772475403700,8.38995203,87.33,87.3,11.45475372]
[1772475404014,8.38995203,87.32,87.3,11.45475372]
[1772475404213,8.38995203,87.32,87.3,40.09163802]
[1772475404505,8.38995203,87.32,87.3,28.6368843]
[1772475405403,8.38995203,87.32,87.293,4.14766891]
[1772475405585,12.51332715,87.33,87.293,4.14766891]
[1772475406698,12.51332715,87.33,87.295,4.14766891]
[1772475407589,4.25060726,87.329,87.295,4.14766891]
[1772475408199,8.38995203,87.32,87.295,4.14766891]
[1772475408990,8.38995203,87.32,87.296,11.45527859]
[1772475409390,8.38995203,87.32,87.296,40.09347507]
[1772475410791,12.64055929,87.34,87.297,4.44308902]
[1772475411007,12.64055929,87.34,87.299,4.44308902]
[1772475412797,12.64055929,87.34,87.301,4.44308902]
[1772475413105,4.25060726,87.339,87.301,4.44308902]
[1772475414805,4.25060726,87.339,87.302,40.09071956]
[1772475415002,298.34916817,87.339,87.306,4.44308902]
[1772475415204,113.75978169,87.339,87.306,4.44308902]
[1772475415391,14.80451218,87.36,87.306,4.44308902]
[1772475415596,4.25060726,87.359,87.306,4.44308902]
[1772475416104,3.35758785,87.35,87.306,4.44308902]
[1772475416607,8.3912152,87.35,87.308,4.44308902]
[1772475417090,8.3912152,87.34,87.308,4.44308902]
[1772475417290,4.25060726,87.339,87.308,4.44308902]
[1772475417486,4.25060726,87.319,87.288,3.69383402]
[1772475417708,3.64025869,87.319,87.285,44.54161682]
[1772475417913,3.64025869,87.319,87.288,3.69383402]
[1772475418311,8.3912152,87.31,87.28,11.45730913]
[1772475418509,8.3912152,87.31,87.282,11.45711601]
[1772475418704,8.3912152,87.3,87.282,11.45711601]
[1772475419209,8.3912152,87.32,87.283,4.44308902]
[1772475420521,3.64636217,87.328,87.285,4.44308902]
[1772475420812,8.3912152,87.33,87.288,4.44308902]
[1772475422413,11.44999415,87.337,87.288,4.44308902]
[1772475422414,8.3912152,87.34,87.288,4.44308902]
[1772475422714,11.44855237,87.348,87.295,4.44308902]
[1772475423213,8.3912152,87.35,87.303,4.44308902]
[1772475424527,3.64636217,87.348,87.303,4.44308902]
[1772475424818,8.3912152,87.35,87.308,4.44308902]
[1772475425419,12.03757737,87.35,87.308,4.44308902]
[1772475425919,3.64636217,87.349,87.308,4.44308902]
[1772475426104,11.44832797,87.349,87.308,4.44308902]
[1772475426300,3.64636217,87.348,87.308,4.44308902]
[1772475426824,3.64636217,87.346,87.31,4.44308902]
[1772475427120,3.64636217,87.339,87.293,28.63897871]
[1772475427330,8.3912152,87.32,87.294,11.45554104]
[1772475427522,3.64636217,87.329,87.295,4.44308902]
[1772475428005,8.3912152,87.32,87.295,4.44308902]
[1772475428428,12.03757737,87.31,87.285,11.45672223]
[1772475428609,8.3912152,87.29,87.271,11.45856011]
[1772475428810,3.64636217,87.289,87.271,11.45856011]
[1772475429012,8.3912152,87.29,87.25,0.2]
[1772475429013,3.57379955,87.279,87.25,0.2]
[1772475429323,3.57379955,87.317,87.255,4.44308902]
[1772475429530,8.3912152,87.31,87.255,4.44308902]
[1772475429823,8.3912152,87.3,87.255,4.44308902]
[1772475431107,8.3912152,87.3,87.259,3.69383402]
[1772475431422,8.3912152,87.31,87.264,4.44308902]
[1772475432721,3.57379955,87.318,87.264,4.44308902]
[1772475434027,8.3912152,87.32,87.269,4.44308902]
[1772475434328,8.3912152,87.32,87.274,4.44308902]
[1772475434509,8.3912152,87.32,87.279,4.44308902]
[1772475434709,3.69383402,87.369,87.278,3.69383402]
[1772475434710,11.44835942,87.349,87.284,4.44308902]
[1772475435026,8.3912152,87.32,87.288,3.69383402]
[1772475435214,3.57379955,87.329,87.289,4.44308902]
[1772475435526,3.57379955,87.319,87.27,4.42859689]
[1772475436030,8.3912152,87.33,87.275,4.42859689]
[1772475437022,8.3912152,87.34,87.281,4.42859689]
[1772475437331,8.3912152,87.34,87.293,4.42859689]
[1772475438230,3.57379955,87.339,87.298,4.2576592]
[1772475441609,3.57379955,87.338,87.3,4.2576592]
[1772475441806,3.57379955,87.338,87.301,61.55663089]
[1772475442227,11.44972228,87.339,87.265,11.45934796]
[1772475442228,3.57379955,87.309,87.265,11.45934796]
[1772475442421,131.67092928,87.339,87.265,11.45934796]
[1772475442422,3.57379955,87.289,87.265,11.45934796]
[1772475442624,3.57379955,87.279,87.254,11.46079262]
[1772475443215,11.96501475,87.27,87.25,0.2]
[1772475443419,3.57379955,87.269,87.25,11.62510166]
[1772475443613,3.69383402,87.324,87.253,4.5]
[1772475443824,8.3912152,87.29,87.253,4.5]
[1772475444424,8.3912152,87.32,87.261,4.78432314]
[1772475446142,11.45226124,87.319,87.266,4.5]
[1772475447629,8.3912152,87.31,87.266,4.5]
[1772475447836,8.3912152,87.3,87.266,4.5]
[1772475448035,11.45488493,87.299,87.267,40.10679866]
[1772475451140,8.40242857,87.32,87.267,44.60679866]
[1772475451846,8.40242857,87.32,87.268,4.5]
[1772475455127,0.28432314,87.336,87.27,4.5]
[1772475455331,0.28432314,87.336,87.272,4.5]
[1772475455332,8.40242857,87.32,87.272,4.5]
[1772475457239,11.4519001,87.322,87.277,4.5]
[1772475457436,11.44885225,87.345,87.283,4.5]
[1772475457648,8.40242857,87.34,87.283,4.5]
[1772475458744,7.27251751,87.346,87.287,4.5]
[1772475458951,11.44885225,87.345,87.293,4.5]
[1772475459250,8.40242857,87.34,87.293,4.5]
[1772475459549,8.40242857,87.34,87.298,4.5]
[1772475459550,19.85197175,87.34,87.298,4.5]
[1772475459851,8.40242857,87.33,87.298,4.5]
[1772475460956,19.85197175,87.34,87.298,4.5]
[1772475463955,19.85197175,87.34,87.275,45.83175575]
[1772475463956,19.85197175,87.34,87.3,4.5]
[1772475464556,8.40242857,87.33,87.3,4.5]
[1772475464737,8.40242857,87.33,87.299,11.45488493]
[1772475465344,19.85197175,87.34,87.3,4.5]
[1772475465544,7.27251751,87.346,87.304,3.69383402]
[1772475465746,7.27251751,87.346,87.303,4.78432314]
[1772475465747,7.27251751,87.346,87.305,4.5]
[1772475465951,7.27251751,87.346,87.31,4.5]
[1772475466637,7.27251751,87.346,87.309,3.69383402]
[1772475466638,1e-08,87.346,87.314,4.5]
[1772475466949,1e-08,87.346,87.315,4.5]
[1772475469246,1e-08,87.346,87.317,4.5]
[1772475470548,1e-08,87.346,87.319,4.5]
[1772475470854,1e-08,87.346,87.315,58.69431972]
[1772475471061,8.40242857,87.33,87.291,4.5]
[1772475471840,1e-08,87.346,87.293,4.5]
[1772475473342,1e-08,87.346,87.298,4.5]
[1772475473963,1e-08,87.346,87.303,4.78432314]
[1772475475368,1e-08,87.346,87.308,4.5]
[1772475476066,8.40242857,87.38,87.324,4.5]
[1772475476260,8.40242857,87.38,87.328,4.5]
[1772475476573,11.4436116,87.385,87.328,4.5]
[1772475477070,8.40242857,87.38,87.328,4.5]
[1772475477655,11.44439739,87.379,87.33,4.5]
[1772475478369,11.44439739,87.379,87.325,11.45147437]
[1772475478370,8.40242857,87.34,87.325,11.45147437]
[1772475478569,8.40242857,87.34,87.312,11.4531794]
[1772475478769,8.40242857,87.34,87.313,4.5]
[1772475478970,8.40242857,87.35,87.313,4.5]
[1772475479376,8.40242857,87.37,87.316,4.5]
[1772475479550,8.40242857,87.37,87.305,45.81588392]
[1772475479551,40.05539087,87.379,87.326,4.5]
[1772475481386,0.28432314,87.388,87.326,4.5]
[1772475481580,11.72754188,87.388,87.326,4.5]
[1772475482457,11.72754188,87.388,87.325,3.69383402]
[1772475482458,11.44321874,87.388,87.331,4.78432314]
[1772475482654,11.44321874,87.388,87.334,4.5]
[1772475482853,8.40242857,87.38,87.334,4.5]
[1772475483670,8.40242857,87.37,87.334,4.5]
[1772475483870,8.40242857,87.37,87.336,4.5]
[1772475484061,8.40242857,87.38,87.336,4.5]
[1772475484375,8.40242857,87.37,87.335,58.69431972]
[1772475484569,8.40242857,87.37,87.336,11.45003206]
[1772475484766,8.40242857,87.38,87.337,4.5]
[1772475485856,11.44348064,87.386,87.34,4.5]
[1772475486174,8.40242857,87.39,87.34,4.5]
[1772475486476,8.40242857,87.39,87.322,1.14518677]
[1772475486477,8.40242857,87.35,87.325,11.45147437]
[1772475486654,8.40242857,87.35,87.326,3.69383402]
[1772475486853,8.40242857,87.35,87.325,70.14579409]
[1772475487054,11.44578078,87.369,87.326,4.5]
[1772475487468,8.40242857,87.36,87.326,4.5]
[1772475489274,11.44701747,87.359,87.327,11.45121211]
[1772475491257,8.40242857,87.37,87.328,4.5]
[1772475493274,11.44570728,87.369,87.33,4.5]
[1772475493477,11.44570728,87.369,87.319,11.45226124]
[1772475493478,8.40242857,87.35,87.319,11.45226124]
[1772475493675,8.40242857,87.37,87.32,4.5]
[1772475493899,11.72872053,87.379,87.32,4.5]
[1772475494176,8.40242857,87.37,87.32,4.5]
[1772475495276,0.28432314,87.359,87.322,4.5]
[1772475495577,8.40242857,87.36,87.321,44.5819963]
[1772475495763,8.40242857,87.36,87.322,4.5]
[1772475496865,11.44701747,87.359,87.324,4.5]
[1772475497778,8.40242857,87.35,87.319,11.45218559]
[1772475497966,0.28432314,87.358,87.319,11.45218559]
[1772475498167,0.28432314,87.358,87.319,15.95218559]
[1772475498981,40.06547843,87.357,87.319,15.95218559]
[1772475499182,8.40242857,87.35,87.319,15.95218559]
[1772475501070,8.40242857,87.35,87.32,4.5]
[1772475501267,11.44786306,87.353,87.321,11.45199894]
[1772475501472,11.44594702,87.368,87.322,4.5]
[1772475501668,11.44594702,87.368,87.323,4.5]
[1772475501879,0.28432314,87.367,87.323,4.5]
[1772475503290,11.44610031,87.366,87.325,4.5]
[1772475503894,8.40242857,87.35,87.322,58.69431972]
[1772475504193,8.40242857,87.35,87.32,11.45206547]
[1772475505982,0.28432314,87.359,87.315,4.5]
[1772475506687,8.40242857,87.35,87.315,4.5]
[1772475507068,0.28432314,87.349,87.309,11.45350672]
[1772475507269,8.40242857,87.34,87.309,11.45350672]
[1772475508089,11.44963876,87.339,87.309,11.45350672]
[1772475508581,11.44963876,87.339,87.309,15.95350672]
[1772475508984,0.28432314,87.347,87.31,4.5]
[1772475510176,11.44872117,87.346,87.311,15.95331057]
[1772475510488,8.39418737,87.34,87.311,11.45331057]
[1772475513577,11.44963876,87.339,87.31,4.5]
[1772475514796,11.44963876,87.339,87.311,11.45331057]
[1772475515180,11.44963876,87.339,87.312,4.5]
[1772475515383,7.51907951,87.37,87.312,4.5]
[1772475515588,7.51907951,87.37,87.315,4.5]
[1772475515772,10.87700689,87.37,87.315,4.5]
[1772475516180,7.51907951,87.37,87.315,4.5]
[1772475516419,18.96473689,87.37,87.315,4.5]
[1772475516898,8.38831768,87.4,87.324,4.5]
[1772475518099,0.28432314,87.399,87.324,4.5]
[1772475518304,8.38831768,87.4,87.324,4.5]
[1772475518796,0.28432314,87.399,87.324,4.5]
[1772475519002,0.28432314,87.389,87.329,4.5]
[1772475520303,0.28432314,87.397,87.334,4.5]
[1772475521110,0.28432314,87.397,87.329,62.38815374]
[1772475521111,0.28432314,87.389,87.339,4.5]
[1772475521408,8.38831768,87.38,87.339,4.5]
[1772475522804,0.28432314,87.359,87.327,4.5]
[1772475523005,0.28432314,87.357,87.327,4.5]
[1772475525309,11.44741059,87.356,87.327,4.5]
[1772475525487,40.06593707,87.356,87.327,4.5]
[1772475526382,40.06593707,87.356,87.328,4.5]
[1772475526807,11.44623132,87.365,87.328,4.5]
[1772475527811,8.38831768,87.37,87.33,4.5]
[1772475528109,8.38831768,87.36,87.323,11.45163251]
[1772475528292,8.38831768,87.36,87.324,4.5]
[1772475528886,0.14216157,87.369,87.324,4.5]
[1772475529107,8.38831768,87.37,87.324,4.5]
[1772475530407,40.34429863,87.369,87.326,4.5]
[1772475532793,40.34429863,87.369,87.328,4.5]
[1772475532994,8.38831768,87.34,87.309,4.5]
[1772475533202,0.28432314,87.339,87.296,4.5]
[1772475533393,8.38831768,87.33,87.296,4.5]
[1772475536604,8.38831768,87.31,87.28,4.5]
[1772475537015,8.38831768,87.32,87.28,4.5]
[1772475538405,11.45003206,87.336,87.282,4.5]
[1772475538599,8.38831768,87.33,87.284,4.5]
[1772475539405,8.38831768,87.33,87.285,4.5]
[1772475540185,11.45094985,87.329,87.287,4.5]
[1772475540391,0.28432314,87.339,87.29,4.5]
[1772475540694,8.38831768,87.36,87.298,4.5]
[1772475541100,8.38831768,87.38,87.307,0.28432314]
[1772475541306,19.83127454,87.39,87.319,4.5]
[1772475541511,18.9487565,87.395,87.333,4.5]
[1772475541688,0.28432314,87.394,87.333,4.5]
[1772475542009,8.38831768,87.37,87.333,4.5]
[1772475542188,11.44570728,87.369,87.334,11.45029427]
[1772475542700,11.44570728,87.369,87.335,4.5]
[1772475542900,8.38831768,87.39,87.338,4.5]
[1772475545108,8.38831768,87.37,87.339,11.44963876]
[1772475545314,8.38831768,87.37,87.33,4.5]
[1772475545315,8.38831768,87.36,87.33,4.5]
[1772475545522,0.28432314,87.369,87.287,1.14564597]
[1772475545523,8.38831768,87.35,87.317,4.5]
[1772475546089,8.38831768,87.37,87.317,4.5]
[1772475546311,8.38831768,87.37,87.32,4.5]
[1772475547093,8.38831768,87.36,87.322,4.5]
[1772475549313,11.44701747,87.359,87.324,4.5]
[1772475551719,11.44701747,87.359,87.326,4.5]
[1772475551919,11.44649114,87.364,87.326,4.5]
[1772475552126,11.44439739,87.379,87.329,4.5]
[1772475552327,8.38831768,87.35,87.303,4.5]
[1772475552530,8.38831768,87.33,87.287,4.5]
[1772475552712,8.38831768,87.32,87.289,4.5]
[1772475552915,8.38831768,87.31,87.28,4.5]
[1772475553119,8.38831768,87.31,87.281,15.95724728]
[1772475553323,8.38831768,87.31,87.282,4.5]
[1772475553822,8.38831768,87.31,87.261,3.69383402]
[1772475553823,11.45226124,87.319,87.284,4.5]
[1772475554718,8.38831768,87.32,87.284,4.5]
[1772475554917,19.84049996,87.32,87.284,4.5]
[1772475555128,8.38831768,87.31,87.275,4.4999992]
[1772475555513,0.28432314,87.319,87.275,4.4999992]
[1772475556018,19.84049996,87.32,87.277,4.4999992]
[1772475556335,8.38831768,87.31,87.277,4.4999992]
[1772475556723,40.08250752,87.32,87.277,4.4999992]
[1772475556724,11.45157324,87.325,87.277,4.4999992]
[1772475556916,11.45157324,87.325,87.279,3.69383402]
[1772475557112,8.38831768,87.32,87.28,4.4999992]
[1772475557429,8.38831768,87.31,87.276,11.45790366]
[1772475558035,11.45357294,87.309,87.276,15.95790286]
[1772475558616,11.45357294,87.309,87.277,4.4999992]
[1772475560653,3.36034293,87.31,87.279,4.4999992]
[1772475562736,3.36034293,87.31,87.278,11.4576411]
[1772475563036,0.28432314,87.299,87.269,11.45882272]
[1772475563340,0.28432314,87.299,87.269,15.95882192]
[1772475563534,11.45357294,87.309,87.27,4.4999992]
[1772475564739,11.73658438,87.319,87.27,4.4999992]
[1772475565635,40.3672375,87.319,87.272,4.4999992]
[1772475565934,8.39882712,87.3,87.272,4.4999992]
[1772475566537,8.39882712,87.3,87.27,4.4999992]
[1772475566838,0.28432314,87.279,87.252,4.4999992]
[1772475567432,7.55092672,87.313,87.255,4.4999992]
[1772475567618,1.95773802,87.313,87.269,4.4999992]
[1772475568123,7.50626939,87.353,87.279,4.4999992]
[1772475568437,7.50626939,87.353,87.289,4.78432234]
[1772475569842,7.50626939,87.353,87.295,4.4999992]
[1772475570230,11.44793479,87.352,87.295,4.4999992]
[1772475570639,7.50626939,87.353,87.295,4.4999992]
[1772475571229,7.50626939,87.353,87.296,0.28432314]
[1772475571434,7.50626939,87.353,87.303,4.4999992]
[1772475571833,11.44793479,87.352,87.308,4.4999992]
[1772475572634,18.95415044,87.353,87.308,4.4999992]
[1772475572947,7.50626939,87.353,87.308,4.4999992]
[1772475573843,11.44793479,87.352,87.308,4.4999992]
[1772475574024,7.50626939,87.353,87.31,4.4999992]
[1772475575639,0.28432314,87.398,87.314,4.78432234]
[1772475575841,0.28432314,87.379,87.314,4.4999992]
[1772475576039,11.44701747,87.359,87.319,4.4999992]
[1772475576430,0.28432314,87.358,87.319,4.4999992]
[1772475576745,8.390299,87.35,87.319,4.4999992]
[1772475577222,8.390299,87.34,87.302,4.4999992]
[1772475578343,11.44908777,87.344,87.307,4.4999992]
[1772475578548,11.44832797,87.349,87.307,4.4999992]
[1772475578743,11.44832797,87.349,87.31,4.4999992]
[1772475579132,11.73160269,87.357,87.31,4.4999992]
[1772475581045,11.44727955,87.357,87.312,4.4999992]
[1772475582248,8.390299,87.35,87.312,4.4999992]
[1772475582548,8.390299,87.34,87.312,4.4999992]
[1772475583852,11.44963876,87.339,87.313,11.45304822]
[1772475584145,8.390299,87.35,87.314,4.4999992]
[1772475585157,11.44832797,87.349,87.315,11.45278589]
[1772475585454,11.44832797,87.349,87.316,4.4999992]
[1772475586549,11.44701747,87.359,87.316,4.4999992]
[1772475587256,11.73003042,87.369,87.316,4.4999992]
[1772475587436,11.73003042,87.369,87.318,4.4999992]
[1772475587631,40.34429863,87.369,87.318,4.4999992]
[1772475589154,40.34429863,87.369,87.321,4.4999992]
[1772475589155,11.44570728,87.369,87.321,4.4999992]
[1772475589340,11.44452837,87.378,87.331,4.4999992]
[1772475590151,40.05584929,87.378,87.331,4.4999992]
[1772475590654,3.3564709,87.37,87.331,4.4999992]
[1772475591636,3.3564709,87.36,87.333,4.4999992]
[1772475591841,3.3564709,87.35,87.323,4.4999992]
[1772475592141,0.28432314,87.359,87.323,4.4999992]
[1772475593161,0.28432314,87.357,87.323,15.951643]
[1772475594858,3.3564709,87.36,87.324,4.4999992]
[1772475595254,40.06456116,87.359,87.325,11.45147437]
[1772475595454,40.06456116,87.359,87.326,4.4999992]
[1772475597046,40.06456116,87.359,87.325,11.45147437]
[1772475597047,0.28432314,87.358,87.317,4.4999992]
[1772475597961,11.44701747,87.359,87.317,4.4999992]
[1772475598567,0.28432314,87.358,87.317,4.4999992]
[1772475598742,3.3564709,87.34,87.302,4.4999992]
[1772475598945,0.28432314,87.339,87.302,4.4999992]
[1772475599445,0.28432314,87.337,87.304,4.4999992]
[1772475600344,11.44976985,87.338,87.304,4.4999992]
[1772475600851,11.44793479,87.352,87.304,4.4999992]
[1772475601367,3.3564709,87.37,87.309,4.4999992]
[1772475601575,0.28432314,87.369,87.309,4.4999992]
[1772475602461,11.44452837,87.378,87.314,4.78432234]
[1772475602657,7.48250312,87.379,87.318,4.78432234]
[1772475602863,7.48250312,87.379,87.334,4.4999992]
[1772475603368,7.48250312,87.379,87.336,4.4999992]
[1772475603369,11.44570728,87.369,87.336,4.4999992]
[1772475603569,7.48250312,87.379,87.336,4.4999992]
[1772475603766,7.48250312,87.379,87.339,4.4999992]
[1772475604062,18.9270167,87.379,87.339,4.4999992]
[1772475605248,7.48250312,87.379,87.343,4.4999992]
[1772475605447,1e-08,87.379,87.348,4.43164991]
[1772475607668,1e-08,87.379,87.35,4.43164991]
[1772475609555,1e-08,87.379,87.351,40.06823046]
[1772475609866,1e-08,87.379,87.352,4.43164991]
[1772475611569,1e-08,87.379,87.354,4.43164991]
[1772475612569,0.1,87.41,87.36,4.43164991]
[1772475612775,0.1,87.41,87.364,4.43164991]
[1772475612974,8.48650144,87.44,87.401,4.43164991]
[1772475613155,4.27981229,87.44,87.401,4.43164991]
[1772475613553,0.1,87.44,87.401,4.43164991]
[1772475613773,0.1,87.44,87.406,4.43164991]
[1772475614074,4.17981229,87.439,87.403,4.43164991]
[1772475614655,4.17981229,87.429,87.388,11.44320838]
[1772475615956,4.13719453,87.419,87.384,4.43164991]
[1772475616157,4.13719453,87.409,87.37,11.44557628]
[1772475616355,4.13719453,87.409,87.34,91.59540844]
[1772475616356,4.13719453,87.389,87.331,4.28984378]
[1772475616677,4.13719453,87.379,87.332,4.28984378]
[1772475617180,4.13719453,87.379,87.335,4.28984378]
[1772475618372,15.73354097,87.378,87.339,3.69383402]
[1772475618588,4.2890126,87.367,87.319,4.22203147]
[1772475619058,4.2890126,87.359,87.305,13.81090319]
[1772475619265,4.2890126,87.359,87.297,4.22203147]
[1772475619266,4.2890126,87.339,87.301,11.45461965]
[1772475619656,4.2890126,87.337,87.301,11.45461965]
[1772475619857,4.2890126,87.337,87.302,4.22203147]
[1772475620354,4.2890126,87.328,87.293,11.45567227]
[1772475620874,4.2890126,87.328,87.294,4.22203147]
[1772475621663,4.2890126,87.346,87.294,4.22203147]
[1772475622567,15.73786485,87.345,87.296,4.22203147]
[1772475622889,4.2890126,87.352,87.299,4.22203147]
[1772475623092,11.44623132,87.365,87.305,4.22203147]
[1772475623261,4.2890126,87.383,87.312,0.28432314]
[1772475623462,4.2890126,87.383,87.325,4.22203147]
[1772475623766,4.2890126,87.399,87.334,0.28432314]
[1772475623970,15.73079111,87.399,87.335,4.22203147]
[1772475624277,4.2890126,87.398,87.345,4.22203147]
[1772475625083,45.74929967,87.434,87.35,4.22203147]
[1772475625084,4.2890126,87.396,87.35,4.22203147]
[1772475626884,11.44204034,87.397,87.331,11.45068761]
[1772475626885,4.57333574,87.389,87.331,11.45068761]
[1772475627074,4.57333574,87.379,87.331,11.45068761]
[1772475627275,4.57333574,87.379,87.331,40.07740664]
[1772475627592,4.57333574,87.379,87.332,4.22203147]
[1772475628163,4.2890126,87.395,87.335,4.22203147]
[1772475628388,4.2890126,87.394,87.335,4.22203147]
[1772475629091,4.2890126,87.392,87.34,4.22203147]
[1772475630575,4.2890126,87.39,87.342,4.22203147]
[1772475630884,4.2890126,87.386,87.341,40.07281803]
[1772475631082,4.2890126,87.386,87.341,44.2948495]
[1772475631776,0.28432314,87.379,87.341,11.44937658]
[1772475632092,0.28432314,87.385,87.341,11.44937658]
[1772475632093,4.2890126,87.385,87.342,4.22203147]
[1772475632669,8.38387183,87.4,87.327,3.69383402]
[1772475632670,15.72899126,87.413,87.349,4.22203147]
[1772475632881,11.43907088,87.42,87.355,4.22203147]
[1772475633078,4.2890126,87.422,87.355,4.22203147]
[1772475633477,4.2890126,87.415,87.355,4.22203147]
[1772475633672,4.2890126,87.409,87.355,4.22203147]
[1772475633885,8.38387183,87.41,87.355,4.22203147]
[1772475633886,4.2890126,87.407,87.355,4.22203147]
[1772475634574,4.2890126,87.407,87.36,4.22203147]
[1772475634988,11.44086218,87.406,87.36,4.22203147]
[1772475635172,4.2890126,87.405,87.36,4.22203147]
[1772475636520,4.2890126,87.415,87.36,4.22203147]
[1772475636678,4.2890126,87.415,87.368,4.22203147]
[1772475636992,8.38387183,87.39,87.36,11.44683774]
[1772475637195,8.38387183,87.39,87.35,28.62027935]
[1772475637378,8.38387183,87.39,87.347,15.67062157]
[1772475637583,4.2890126,87.389,87.351,28.62016462]
[1772475637780,4.2890126,87.389,87.352,4.22203147]
[1772475638482,0.28432314,87.413,87.352,4.22203147]
[1772475638795,11.44007687,87.412,87.354,4.22203147]
[1772475638994,4.2890126,87.411,87.357,4.22203147]
[1772475640086,11.44007687,87.412,87.353,11.44780373]
[1772475640087,4.2890126,87.389,87.353,11.44780373]
[1772475640493,4.2890126,87.389,87.353,40.06731307]
[1772475640878,15.73221708,87.389,87.353,28.61950934]
[1772475641079,4.2890126,87.388,87.354,4.22203147]
[1772475641480,4.2890126,87.387,87.354,4.22203147]
[1772475643903,4.2890126,87.387,87.355,11.44754164]
[1772475644783,11.44348064,87.386,87.355,11.44754164]
[1772475645204,4.2890126,87.385,87.355,11.44754164]
[1772475646105,4.2890126,87.385,87.344,3.69383402]
[1772475646106,4.2890126,87.379,87.326,11.45134324]
[1772475646403,4.2890126,87.383,87.328,4.22203147]
[1772475646606,4.2890126,87.377,87.33,4.22203147]
[1772475647309,0.14216157,87.405,87.335,4.3945055]
[1772475647506,28.60240236,87.406,87.344,0.28432314]
[1772475647806,28.60240236,87.406,87.345,4.3945055]
[1772475648202,8.38387183,87.38,87.347,4.3945055]